[Event "Titled Tuesday Blitz September 27 Early 2022"]
[White "Harshad S"]
[Black "Maksimenko, Viktor"]
[WhiteFideId "46616551"]
[BlackFideId "13710478"]
[WhiteElo "2046"]
[BlackElo "2269"]
[Result "0-1"]
[Round "10"]
[TimeControl "180+1"]
[Date "2022.09.27"]
[WhiteClock "0:00:06"]
[BlackClock "0:00:17"]

1. e4 {[%clk 0:03:00]}  e5 {[%clk 0:02:22]} 2. Bc4 {[%clk 0:02:59]}  Nf6 {[%clk 0:02:22]} 3. d3 {[%clk 0:02:58]}  Nc6 {[%clk 0:02:21]} 4. Nc3 {[%clk 0:02:57]}  Na5 {[%clk 0:02:21]} 5. Nge2 {[%clk 0:02:55]}  Bc5 {[%clk 0:02:20]} 6. a4 {[%clk 0:02:55]}  Nxc4 {[%clk 0:02:19]} 7. dxc4 {[%clk 0:02:56]}  h6 {[%clk 0:02:13]} 8. f3 {[%clk 0:02:49]}  d6 {[%clk 0:02:10]} 9. Qd3 {[%clk 0:02:48]}  Be6 {[%clk 0:02:09]} 10. b3 {[%clk 0:02:47]}  Qd7 {[%clk 0:02:04]} 11. Be3 {[%clk 0:02:46]}  O-O-O {[%clk 0:01:53]} 12. O-O {[%clk 0:02:36]}  g5 {[%clk 0:01:50]} 13. Kh1 {[%clk 0:02:22]}  Nh5 {[%clk 0:01:50]} 14. Bxc5 {[%clk 0:02:00]}  dxc5 {[%clk 0:01:49]} 15. Qe3 {[%clk 0:02:00]}  Qe7 {[%clk 0:01:39]} 16. Nd5 {[%clk 0:01:56]}  Qf8 {[%clk 0:01:36]} 17. Ng3 {[%clk 0:01:35]}  Nf4 {[%clk 0:01:30]} 18. Rfd1 {[%clk 0:01:32]}  h5 {[%clk 0:01:23]} 19. Nc3 {[%clk 0:01:24]}  Rd4 {[%clk 0:01:19]} 20. Nb5 {[%clk 0:01:13]}  g4 {[%clk 0:01:09]} 21. Nxd4 {[%clk 0:01:10]}  cxd4 {[%clk 0:01:08]} 22. Rxd4 {[%clk 0:01:02]}  Nxg2 {[%clk 0:01:07]} 23. Kxg2 {[%clk 0:01:03]}  exd4 {[%clk 0:01:07]} 24. Qxd4 {[%clk 0:01:04]}  h4 {[%clk 0:01:06]} 25. Nf5 {[%clk 0:01:02]}  Rg8 {[%clk 0:00:59]} 26. f4 {[%clk 0:00:30]}  Bxf5 {[%clk 0:00:52]} 27. exf5 {[%clk 0:00:31]}  Qe7 {[%clk 0:00:51]} 28. Qxa7 {[%clk 0:00:21]}  Qe4+ {[%clk 0:00:42]} 29. Kg1 {[%clk 0:00:21]}  h3 {[%clk 0:00:38]} 30. Qf2 {[%clk 0:00:17]}  g3 {[%clk 0:00:36]} 31. hxg3 {[%clk 0:00:18]}  h2+ {[%clk 0:00:34]} 32. Qxh2 {[%clk 0:00:17]}  Qd4+ {[%clk 0:00:35]} 33. Qf2 {[%clk 0:00:17]}  Qxa1+ {[%clk 0:00:35]} 34. Kg2 {[%clk 0:00:18]}  Qc3 {[%clk 0:00:34]} 35. Kh3 {[%clk 0:00:17]}  Rd8 {[%clk 0:00:30]} 36. Qa7 {[%clk 0:00:12]}  c6 {[%clk 0:00:23]} 37. Qf2 {[%clk 0:00:10]}  Rd2 {[%clk 0:00:20]} 38. Qc5 {[%clk 0:00:11]}  Qf6 {[%clk 0:00:16]} 39. Kg4 {[%clk 0:00:09]}  Rd8 {[%clk 0:00:16]} 40. a5 {[%clk 0:00:08]}  Qd6 {[%clk 0:00:16]} 41. Qe3 {[%clk 0:00:07]}  Qd1+ {[%clk 0:00:16]} 42. Kh4 {[%clk 0:00:03]}  Rh8+ {[%clk 0:00:14]} 43. Kg5 {[%clk 0:00:04]}  Qd8+ {[%clk 0:00:15]} 44. f6 {[%clk 0:00:03]}  Qg8+ {[%clk 0:00:15]} 45. Kf5 {[%clk 0:00:04]}  Qg6+ {[%clk 0:00:15]} 46. Ke5 {[%clk 0:00:04]}  Re8+ {[%clk 0:00:16]} 47. Kd4 {[%clk 0:00:05]}  Rxe3 {[%clk 0:00:17]} 48. Kxe3 {[%clk 0:00:06]}  Qxg3+ {[%clk 0:00:17]} 0-1


[Site "https://www.chess.com"]

[Event "Titled Tuesday Blitz September 27 Early 2022"]
[White "Hristodoulou, Panagiotis"]
[Black "Bowden, Karl"]
[WhiteFideId "4214340"]
[BlackFideId "400548"]
[WhiteElo "2172"]
[BlackElo "2488"]
[Result "1-0"]
[Round "10"]
[TimeControl "180+1"]
[Date "2022.09.27"]
[WhiteClock "0:02:26"]
[BlackClock "0:00:15"]

1. d4 {[%clk 0:03:00]}  Nf6 {[%clk 0:02:58]} 2. Nf3 {[%clk 0:02:58]}  g6 {[%clk 0:02:58]} 3. Bg5 {[%clk 0:02:56]}  Bg7 {[%clk 0:02:58]} 4. Nbd2 {[%clk 0:02:57]}  O-O {[%clk 0:02:58]} 5. c3 {[%clk 0:02:57]}  d6 {[%clk 0:02:48]} 6. e4 {[%clk 0:02:55]}  h6 {[%clk 0:02:25]} 7. Bh4 {[%clk 0:02:50]}  g5 {[%clk 0:02:11]} 8. Bg3 {[%clk 0:02:50]}  Nh5 {[%clk 0:02:12]} 9. Bc4 {[%clk 0:02:49]}  e6 {[%clk 0:02:03]} 10. O-O {[%clk 0:02:46]}  Nxg3 {[%clk 0:02:02]} 11. hxg3 {[%clk 0:02:45]}  d5 {[%clk 0:02:00]} 12. Bd3 {[%clk 0:02:45]}  Nc6 {[%clk 0:01:18]} 13. Re1 {[%clk 0:02:43]}  Bd7 {[%clk 0:01:14]} 14. Rc1 {[%clk 0:02:43]}  Qf6 {[%clk 0:01:05]} 15. Bb1 {[%clk 0:02:41]}  Rfe8 {[%clk 0:01:02]} 16. Qc2 {[%clk 0:02:39]}  Rac8 {[%clk 0:00:48]} 17. Re2 {[%clk 0:02:39]}  Ne7 {[%clk 0:00:30]} 18. Rce1 {[%clk 0:02:36]}  dxe4 {[%clk 0:00:25]} 19. Nxe4 {[%clk 0:02:35]}  Qg6 {[%clk 0:00:23]} 20. Qb3 {[%clk 0:02:33]}  Qh5 {[%clk 0:00:23]} 21. Nc5 {[%clk 0:02:31]}  Bc6 {[%clk 0:00:22]} 22. Be4 {[%clk 0:02:31]}  b6 {[%clk 0:00:20]} 23. Nxe6 {[%clk 0:02:27]}  Bxe4 {[%clk 0:00:16]} 24. Nxg7 {[%clk 0:02:26]}  Kxg7 {[%clk 0:00:15]} 25. Rxe4 {[%clk 0:02:26]} 1-0


[Site "https://www.chess.com"]

[Event "Titled Tuesday Blitz September 27 Early 2022"]
[White "Ibrahimli, Murad"]
[Black "Kvon, Andrey"]
[WhiteFideId "13410229"]
[BlackFideId "14201356"]
[WhiteElo "2109"]
[BlackElo "2458"]
[Result "1-0"]
[Round "10"]
[TimeControl "180+1"]
[Date "2022.09.27"]
[WhiteClock "0:01:32"]
[BlackClock "0:00:21"]

1. e4 {[%clk 0:03:00]}  e5 {[%clk 0:02:58]} 2. Nf3 {[%clk 0:03:00]}  Nc6 {[%clk 0:02:56]} 3. Bb5 {[%clk 0:03:01]}  a6 {[%clk 0:02:54]} 4. Ba4 {[%clk 0:03:01]}  Nf6 {[%clk 0:02:53]} 5. O-O {[%clk 0:03:01]}  Be7 {[%clk 0:02:53]} 6. Re1 {[%clk 0:03:01]}  b5 {[%clk 0:02:53]} 7. Bb3 {[%clk 0:03:02]}  d6 {[%clk 0:02:53]} 8. c3 {[%clk 0:03:02]}  O-O {[%clk 0:02:54]} 9. h3 {[%clk 0:03:02]}  Nb8 {[%clk 0:02:54]} 10. d4 {[%clk 0:03:02]}  Nbd7 {[%clk 0:02:55]} 11. Nbd2 {[%clk 0:03:02]}  c5 {[%clk 0:02:56]} 12. d5 {[%clk 0:02:51]}  c4 {[%clk 0:02:55]} 13. Bc2 {[%clk 0:02:51]}  Nc5 {[%clk 0:02:55]} 14. b4 {[%clk 0:02:47]}  cxb3 {[%clk 0:02:53]} 15. axb3 {[%clk 0:02:47]}  Qc7 {[%clk 0:02:46]} 16. Qe2 {[%clk 0:02:30]}  Bd7 {[%clk 0:02:28]} 17. b4 {[%clk 0:02:30]}  Nb7 {[%clk 0:02:17]} 18. Bb2 {[%clk 0:02:29]}  Rfc8 {[%clk 0:02:17]} 19. Bd3 {[%clk 0:02:29]}  Be8 {[%clk 0:02:15]} 20. Rec1 {[%clk 0:02:22]}  Qb6 {[%clk 0:01:59]} 21. c4 {[%clk 0:02:22]}  Nh5 {[%clk 0:02:00]} 22. Qe1 {[%clk 0:02:11]}  Nf4 {[%clk 0:01:57]} 23. Bf1 {[%clk 0:02:11]}  bxc4 {[%clk 0:01:40]} 24. Nxc4 {[%clk 0:02:11]}  Qd8 {[%clk 0:01:39]} 25. Qe3 {[%clk 0:02:08]}  Bb5 {[%clk 0:01:28]} 26. Nb6 {[%clk 0:02:03]}  Rxc1 {[%clk 0:01:28]} 27. Rxc1 {[%clk 0:02:02]}  Rb8 {[%clk 0:01:27]} 28. Bxb5 {[%clk 0:01:54]}  axb5 {[%clk 0:01:27]} 29. Rc6 {[%clk 0:01:53]}  h6 {[%clk 0:00:44]} 30. h4 {[%clk 0:01:45]}  Bxh4 {[%clk 0:00:26]} 31. g3 {[%clk 0:01:44]}  Bg5 {[%clk 0:00:26]} 32. gxf4 {[%clk 0:01:37]}  Bxf4 {[%clk 0:00:27]} 33. Qe2 {[%clk 0:01:35]}  Kh7 {[%clk 0:00:25]} 34. Kf1 {[%clk 0:01:35]}  Qf6 {[%clk 0:00:22]} 35. Nd7 {[%clk 0:01:31]}  Qd8 {[%clk 0:00:22]} 36. Nxb8 {[%clk 0:01:32]}  Qxb8 {[%clk 0:00:23]} 37. Qxb5 {[%clk 0:01:31]}  Qa7 {[%clk 0:00:22]} 38. Ra6 {[%clk 0:01:31]}  Qb8 {[%clk 0:00:21]} 39. Rb6 {[%clk 0:01:32]} 1-0


[Site "https://www.chess.com"]

[Event "Titled Tuesday Blitz September 27 Early 2022"]
[White "Ilkhomi, Jaloliddin"]
[Black "Marin Ramirez, Gerardo"]
[WhiteFideId "14700948"]
[BlackFideId "3901068"]
[WhiteElo "1440"]
[BlackElo "1920"]
[Result "1-0"]
[Round "10"]
[TimeControl "180+1"]
[Date "2022.09.27"]
[WhiteClock "0:00:42"]
[BlackClock "0:00:01"]

1. d4 {[%clk 0:03:00]}  d5 {[%clk 0:02:56]} 2. Bf4 {[%clk 0:03:00]}  c6 {[%clk 0:02:54]} 3. e3 {[%clk 0:03:00]}  Qb6 {[%clk 0:02:54]} 4. b3 {[%clk 0:02:58]}  Nf6 {[%clk 0:02:52]} 5. Nd2 {[%clk 0:02:59]}  Bg4 {[%clk 0:02:49]} 6. Be2 {[%clk 0:02:59]}  Bxe2 {[%clk 0:02:44]} 7. Nxe2 {[%clk 0:03:00]}  e6 {[%clk 0:02:43]} 8. O-O {[%clk 0:03:00]}  Nbd7 {[%clk 0:02:43]} 9. c4 {[%clk 0:03:00]}  c5 {[%clk 0:02:37]} 10. Rc1 {[%clk 0:02:58]}  cxd4 {[%clk 0:02:33]} 11. exd4 {[%clk 0:02:59]}  Ba3 {[%clk 0:02:32]} 12. Rc2 {[%clk 0:02:54]}  O-O {[%clk 0:02:29]} 13. cxd5 {[%clk 0:02:53]}  Nxd5 {[%clk 0:02:26]} 14. Nc4 {[%clk 0:02:53]}  Qa6 {[%clk 0:02:23]} 15. Nxa3 {[%clk 0:02:52]}  Qxa3 {[%clk 0:02:22]} 16. Bc1 {[%clk 0:02:51]}  Qa6 {[%clk 0:02:17]} 17. Bd2 {[%clk 0:02:50]}  N7b6 {[%clk 0:02:08]} 18. Nf4 {[%clk 0:02:46]}  Rac8 {[%clk 0:02:07]} 19. Nxd5 {[%clk 0:02:46]}  Nxd5 {[%clk 0:02:04]} 20. Qb1 {[%clk 0:02:46]}  Rxc2 {[%clk 0:02:02]} 21. Qxc2 {[%clk 0:02:47]}  h6 {[%clk 0:01:58]} 22. Rc1 {[%clk 0:02:47]}  Qe2 {[%clk 0:01:45]} 23. f4 {[%clk 0:02:18]}  Rd8 {[%clk 0:01:43]} 24. Re1 {[%clk 0:02:09]}  Qg4 {[%clk 0:01:22]} 25. Qe4 {[%clk 0:02:03]}  b6 {[%clk 0:01:15]} 26. a4 {[%clk 0:02:02]}  Nf6 {[%clk 0:01:11]} 27. Qd3 {[%clk 0:01:56]}  Rc8 {[%clk 0:00:57]} 28. h3 {[%clk 0:01:44]}  Qh5 {[%clk 0:00:44]} 29. a5 {[%clk 0:01:35]}  bxa5 {[%clk 0:00:26]} 30. g4 {[%clk 0:01:15]}  Qd5 {[%clk 0:00:19]} 31. Re5 {[%clk 0:01:13]}  Qd7 {[%clk 0:00:16]} 32. Rxa5 {[%clk 0:01:07]}  Nd5 {[%clk 0:00:14]} 33. Rc5 {[%clk 0:01:05]}  Rb8 {[%clk 0:00:12]} 34. f5 {[%clk 0:00:52]}  exf5 {[%clk 0:00:09]} 35. Qxf5 {[%clk 0:00:52]}  Qxf5 {[%clk 0:00:09]} 36. gxf5 {[%clk 0:00:53]}  Nf6 {[%clk 0:00:06]} 37. Rc7 {[%clk 0:00:45]}  Rxb3 {[%clk 0:00:06]} 38. Rxa7 {[%clk 0:00:45]}  Rd3 {[%clk 0:00:06]} 39. Ra2 {[%clk 0:00:44]}  Rxd4 {[%clk 0:00:03]} 40. Bc3 {[%clk 0:00:44]}  Rd1+ {[%clk 0:00:03]} 41. Kg2 {[%clk 0:00:44]}  Ne4 {[%clk 0:00:01]} 42. Rc2 {[%clk 0:00:42]} 1-0


[Site "https://www.chess.com"]

[Event "Titled Tuesday Blitz September 27 Early 2022"]
[White "Jovic, Stanoje"]
[Black "Kuchava, Ana"]
[WhiteFideId "905020"]
[BlackFideId "13605348"]
[WhiteElo "2238"]
[BlackElo "1955"]
[Result "0-1"]
[Round "10"]
[TimeControl "180+1"]
[Date "2022.09.27"]
[WhiteClock "0:00:41"]
[BlackClock "0:00:19"]

1. c4 {[%clk 0:03:00]}  e6 {[%clk 0:02:57]} 2. g3 {[%clk 0:03:00]}  Nf6 {[%clk 0:02:55]} 3. Bg2 {[%clk 0:03:01]}  d5 {[%clk 0:02:55]} 4. Nf3 {[%clk 0:03:01]}  c5 {[%clk 0:02:50]} 5. cxd5 {[%clk 0:03:00]}  exd5 {[%clk 0:02:49]} 6. O-O {[%clk 0:03:00]}  d4 {[%clk 0:02:44]} 7. e3 {[%clk 0:02:59]}  d3 {[%clk 0:02:39]} 8. b3 {[%clk 0:02:55]}  Be7 {[%clk 0:02:39]} 9. Bb2 {[%clk 0:02:55]}  O-O {[%clk 0:02:39]} 10. Re1 {[%clk 0:02:54]}  Nc6 {[%clk 0:02:39]} 11. a3 {[%clk 0:02:51]}  Qb6 {[%clk 0:02:29]} 12. Bf1 {[%clk 0:02:14]}  Be6 {[%clk 0:02:24]} 13. b4 {[%clk 0:02:14]}  cxb4 {[%clk 0:02:24]} 14. Bxd3 {[%clk 0:02:13]}  bxa3 {[%clk 0:02:22]} 15. Bxa3 {[%clk 0:02:11]}  Bxa3 {[%clk 0:02:16]} 16. Nxa3 {[%clk 0:02:10]}  Rfd8 {[%clk 0:02:15]} 17. Bb1 {[%clk 0:02:01]}  Qb2 {[%clk 0:02:12]} 18. d4 {[%clk 0:01:58]}  Kh8 {[%clk 0:02:04]} 19. Bd3 {[%clk 0:01:54]}  Nb4 {[%clk 0:02:01]} 20. Be2 {[%clk 0:01:47]}  Ne4 {[%clk 0:01:52]} 21. Qb1 {[%clk 0:01:43]}  Qxb1 {[%clk 0:01:47]} 22. Rexb1 {[%clk 0:01:42]}  a5 {[%clk 0:01:47]} 23. Ne5 {[%clk 0:01:30]}  Nc3 {[%clk 0:01:32]} 24. Rb2 {[%clk 0:01:28]}  Nxe2+ {[%clk 0:01:25]} 25. Rxe2 {[%clk 0:01:28]}  Rac8 {[%clk 0:01:25]} 26. Kg2 {[%clk 0:01:16]}  f6 {[%clk 0:01:21]} 27. Nf3 {[%clk 0:01:15]}  h5 {[%clk 0:01:09]} 28. h3 {[%clk 0:01:14]}  b6 {[%clk 0:01:06]} 29. e4 {[%clk 0:01:14]}  Rc3 {[%clk 0:00:57]} 30. d5 {[%clk 0:01:09]}  Bxh3+ {[%clk 0:00:55]} 31. Kxh3 {[%clk 0:01:06]}  Rxf3 {[%clk 0:00:56]} 32. Nc4 {[%clk 0:01:02]}  Nd3 {[%clk 0:00:51]} 33. Kg2 {[%clk 0:00:58]}  Rc8 {[%clk 0:00:23]} 34. Nxb6 {[%clk 0:00:56]}  Rc3 {[%clk 0:00:19]} 35. Kxf3 {[%clk 0:00:52]}  Ne1+ {[%clk 0:00:19]} 36. Kf4 {[%clk 0:00:41]}  Rf3# {[%clk 0:00:19]} 0-1


[Site "https://www.chess.com"]

[Event "Titled Tuesday Blitz September 27 Early 2022"]
[White "Jumanov, Elbek"]
[Black "Tarnowska, Aleksandra"]
[WhiteFideId "14202905"]
[BlackFideId "1180967"]
[WhiteElo "2054"]
[BlackElo "1700"]
[Result "1-0"]
[Round "10"]
[TimeControl "180+1"]
[Date "2022.09.27"]
[WhiteClock "0:00:10"]
[BlackClock "0:00:09"]

1. c4 {[%clk 0:03:00]}  e5 {[%clk 0:02:57]} 2. g3 {[%clk 0:03:00]}  Nc6 {[%clk 0:02:49]} 3. Bg2 {[%clk 0:03:00]}  f5 {[%clk 0:02:48]} 4. Nc3 {[%clk 0:02:59]}  Nf6 {[%clk 0:02:49]} 5. Rb1 {[%clk 0:02:58]}  Bb4 {[%clk 0:02:49]} 6. Qc2 {[%clk 0:02:54]}  Nd4 {[%clk 0:02:43]} 7. Qa4 {[%clk 0:02:50]}  O-O {[%clk 0:02:17]} 8. Nf3 {[%clk 0:02:38]}  Nxf3+ {[%clk 0:01:59]} 9. Bxf3 {[%clk 0:02:37]}  Bxc3 {[%clk 0:01:44]} 10. bxc3 {[%clk 0:02:32]}  e4 {[%clk 0:01:45]} 11. Bg2 {[%clk 0:02:29]}  d6 {[%clk 0:01:42]} 12. O-O {[%clk 0:02:27]}  Bd7 {[%clk 0:01:30]} 13. Qb3 {[%clk 0:02:23]}  Rb8 {[%clk 0:01:23]} 14. d3 {[%clk 0:02:18]}  Qe8 {[%clk 0:01:18]} 15. Bg5 {[%clk 0:02:13]}  Kh8 {[%clk 0:01:15]} 16. Qa3 {[%clk 0:01:57]}  a6 {[%clk 0:01:08]} 17. c5 {[%clk 0:01:44]}  d5 {[%clk 0:01:03]} 18. Rb4 {[%clk 0:01:39]}  Qh5 {[%clk 0:00:51]} 19. Bf4 {[%clk 0:01:35]}  Rfc8 {[%clk 0:00:30]} 20. Rfb1 {[%clk 0:01:26]}  Qxe2 {[%clk 0:00:27]} 21. Bf1 {[%clk 0:01:17]}  Qf3 {[%clk 0:00:22]} 22. c4 {[%clk 0:00:46]}  dxc4 {[%clk 0:00:17]} 23. Rxc4 {[%clk 0:00:41]}  Bc6 {[%clk 0:00:16]} 24. Bg2 {[%clk 0:00:23]}  Qe2 {[%clk 0:00:12]} 25. Rc3 {[%clk 0:00:18]}  Ng4 {[%clk 0:00:07]} 26. Qb2 {[%clk 0:00:11]}  Qxb2 {[%clk 0:00:03]} 27. Rxb2 {[%clk 0:00:12]}  exd3 {[%clk 0:00:04]} 28. Bxc6 {[%clk 0:00:12]}  bxc6 {[%clk 0:00:04]} 29. Rxb8 {[%clk 0:00:12]}  Rxb8 {[%clk 0:00:05]} 30. Rxd3 {[%clk 0:00:12]}  Rc8 {[%clk 0:00:04]} 31. Rd7 {[%clk 0:00:10]}  h6 {[%clk 0:00:03]} 32. Rf7 {[%clk 0:00:08]}  Nf6 {[%clk 0:00:02]} 33. Bxh6 {[%clk 0:00:08]}  gxh6 {[%clk 0:00:02]} 34. Rxf6 {[%clk 0:00:07]}  Rd8 {[%clk 0:00:02]} 35. Rxc6 {[%clk 0:00:07]}  Kg7 {[%clk 0:00:02]} 36. Rxc7+ {[%clk 0:00:07]}  Kg8 {[%clk 0:00:02]} 37. Rc6 {[%clk 0:00:07]}  Rd1+ {[%clk 0:00:02]} 38. Kg2 {[%clk 0:00:07]}  Rc1 {[%clk 0:00:03]} 39. Rxh6 {[%clk 0:00:06]}  Rxc5 {[%clk 0:00:04]} 40. Rxa6 {[%clk 0:00:07]}  Rc2 {[%clk 0:00:04]} 41. Ra4 {[%clk 0:00:06]}  Kf7 {[%clk 0:00:04]} 42. h4 {[%clk 0:00:07]}  Kf6 {[%clk 0:00:04]} 43. Ra6+ {[%clk 0:00:06]}  Kg7 {[%clk 0:00:04]} 44. Ra5 {[%clk 0:00:07]}  Kf6 {[%clk 0:00:04]} 45. Ra6+ {[%clk 0:00:06]}  Kg7 {[%clk 0:00:05]} 46. Ra7+ {[%clk 0:00:07]}  Kf6 {[%clk 0:00:05]} 47. a4 {[%clk 0:00:05]}  Ra2 {[%clk 0:00:05]} 48. a5 {[%clk 0:00:05]}  Ke6 {[%clk 0:00:05]} 49. a6 {[%clk 0:00:05]}  Kd6 {[%clk 0:00:06]} 50. Ra8 {[%clk 0:00:05]}  Kc7 {[%clk 0:00:06]} 51. Rf8 {[%clk 0:00:04]}  Rxa6 {[%clk 0:00:04]} 52. Rxf5 {[%clk 0:00:05]}  Kd7 {[%clk 0:00:05]} 53. g4 {[%clk 0:00:05]}  Ke7 {[%clk 0:00:05]} 54. f3 {[%clk 0:00:06]}  Ra3 {[%clk 0:00:04]} 55. Kg3 {[%clk 0:00:07]}  Rb3 {[%clk 0:00:05]} 56. h5 {[%clk 0:00:07]}  Rb6 {[%clk 0:00:04]} 57. g5 {[%clk 0:00:07]}  Rb4 {[%clk 0:00:05]} 58. h6 {[%clk 0:00:07]}  Ke6 {[%clk 0:00:05]} 59. Rf6+ {[%clk 0:00:08]}  Ke7 {[%clk 0:00:05]} 60. h7 {[%clk 0:00:08]}  Rb8 {[%clk 0:00:05]} 61. Rh6 {[%clk 0:00:08]}  Kf7 {[%clk 0:00:05]} 62. h8=Q {[%clk 0:00:07]}  Rxh8 {[%clk 0:00:04]} 63. Rxh8 {[%clk 0:00:08]}  Kg7 {[%clk 0:00:05]} 64. Rb8 {[%clk 0:00:08]}  Kg6 {[%clk 0:00:06]} 65. Kg4 {[%clk 0:00:08]}  Kh7 {[%clk 0:00:06]} 66. Rb6 {[%clk 0:00:09]}  Kg7 {[%clk 0:00:07]} 67. Kh5 {[%clk 0:00:09]}  Kh7 {[%clk 0:00:08]} 68. Rb7+ {[%clk 0:00:09]}  Kh8 {[%clk 0:00:08]} 69. Kg6 {[%clk 0:00:09]}  Kg8 {[%clk 0:00:09]} 70. Rb8# {[%clk 0:00:10]} 1-0


[Site "https://www.chess.com"]

[Event "Titled Tuesday Blitz September 27 Early 2022"]
[White "Kollars, Dmitrij"]
[Black "Pakleza, Zbigniew"]
[WhiteFideId "12909572"]
[BlackFideId "1119290"]
[WhiteElo "2584"]
[BlackElo "2411"]
[Result "0-1"]
[Round "10"]
[TimeControl "180+1"]
[Date "2022.09.27"]
[WhiteClock "0:00:09"]
[BlackClock "0:00:05"]

1. e4 {[%clk 0:03:00]}  d6 {[%clk 0:02:59]} 2. d4 {[%clk 0:03:00]}  Nf6 {[%clk 0:03:00]} 3. Nc3 {[%clk 0:03:01]}  c6 {[%clk 0:03:00]} 4. f4 {[%clk 0:02:56]}  Qb6 {[%clk 0:03:00]} 5. e5 {[%clk 0:02:48]}  Nd5 {[%clk 0:03:00]} 6. Nxd5 {[%clk 0:02:47]}  cxd5 {[%clk 0:03:01]} 7. c3 {[%clk 0:02:47]}  Bf5 {[%clk 0:03:01]} 8. Bd3 {[%clk 0:02:46]}  g6 {[%clk 0:03:00]} 9. Ne2 {[%clk 0:02:29]}  e6 {[%clk 0:02:58]} 10. O-O {[%clk 0:02:29]}  Nc6 {[%clk 0:02:58]} 11. Kh1 {[%clk 0:02:22]}  Be7 {[%clk 0:02:57]} 12. b3 {[%clk 0:02:14]}  O-O-O {[%clk 0:02:44]} 13. Be3 {[%clk 0:02:13]}  Kb8 {[%clk 0:02:44]} 14. Qd2 {[%clk 0:02:10]}  Rc8 {[%clk 0:02:43]} 15. c4 {[%clk 0:02:05]}  Bxd3 {[%clk 0:02:31]} 16. Qxd3 {[%clk 0:02:06]}  Qa6 {[%clk 0:02:32]} 17. Rfc1 {[%clk 0:01:55]}  dxc4 {[%clk 0:01:59]} 18. Rxc4 {[%clk 0:01:43]}  d5 {[%clk 0:01:56]} 19. Rc3 {[%clk 0:01:43]}  Qxd3 {[%clk 0:01:55]} 20. Rxd3 {[%clk 0:01:44]}  Nb4 {[%clk 0:01:54]} 21. Rd2 {[%clk 0:01:44]}  Nc2 {[%clk 0:01:54]} 22. Rxc2 {[%clk 0:01:36]}  Rxc2 {[%clk 0:01:54]} 23. Ng1 {[%clk 0:01:34]}  Rhc8 {[%clk 0:01:51]} 24. Nf3 {[%clk 0:01:31]}  Re2 {[%clk 0:01:46]} 25. Bg1 {[%clk 0:01:27]}  h6 {[%clk 0:01:33]} 26. Ne1 {[%clk 0:01:19]}  Ba3 {[%clk 0:01:24]} 27. h3 {[%clk 0:01:14]}  Rc1 {[%clk 0:01:17]} 28. Rxc1 {[%clk 0:01:12]}  Bxc1 {[%clk 0:01:18]} 29. Nd3 {[%clk 0:01:12]}  Ba3 {[%clk 0:01:15]} 30. g4 {[%clk 0:01:10]}  Rxa2 {[%clk 0:01:09]} 31. f5 {[%clk 0:01:10]}  g5 {[%clk 0:01:03]} 32. b4 {[%clk 0:01:03]}  b6 {[%clk 0:01:02]} 33. h4 {[%clk 0:01:03]}  Rd2 {[%clk 0:00:55]} 34. hxg5 {[%clk 0:01:02]}  hxg5 {[%clk 0:00:56]} 35. Ne1 {[%clk 0:01:02]}  Bxb4 {[%clk 0:00:37]} 36. Nf3 {[%clk 0:01:02]}  Rd3 {[%clk 0:00:19]} 37. Nxg5 {[%clk 0:01:02]}  Kc7 {[%clk 0:00:13]} 38. Nxf7 {[%clk 0:01:01]}  Kd7 {[%clk 0:00:12]} 39. f6 {[%clk 0:00:48]}  Rg3 {[%clk 0:00:10]} 40. g5 {[%clk 0:00:40]}  Bd2 {[%clk 0:00:09]} 41. Bf2 {[%clk 0:00:29]}  Rg4 {[%clk 0:00:09]} 42. Kh2 {[%clk 0:00:29]}  Rxg5 {[%clk 0:00:05]} 43. Nxg5 {[%clk 0:00:24]}  Bxg5 {[%clk 0:00:06]} 44. Be1 {[%clk 0:00:22]}  a5 {[%clk 0:00:02]} 45. Kg3 {[%clk 0:00:20]}  Ke8 {[%clk 0:00:02]} 46. Kf3 {[%clk 0:00:19]}  Kf7 {[%clk 0:00:02]} 47. Ke2 {[%clk 0:00:19]}  Bh6 {[%clk 0:00:02]} 48. Kd3 {[%clk 0:00:20]}  Bf8 {[%clk 0:00:02]} 49. Kc2 {[%clk 0:00:20]}  Kg6 {[%clk 0:00:01]} 50. Kb3 {[%clk 0:00:19]}  Kf5 {[%clk 0:00:02]} 51. Ka4 {[%clk 0:00:11]}  Ke4 {[%clk 0:00:02]} 52. Bc3 {[%clk 0:00:12]}  Kd3 {[%clk 0:00:03]} 53. Bb2 {[%clk 0:00:12]}  Kc4 {[%clk 0:00:03]} 54. f7 {[%clk 0:00:11]}  Bb4 {[%clk 0:00:04]} 55. f8=Q {[%clk 0:00:09]}  b5# {[%clk 0:00:05]} 0-1


[Site "https://www.chess.com"]

[Event "Titled Tuesday Blitz September 27 Early 2022"]
[White "Koridze, Lile"]
[Black "Roque Sola, Gisela"]
[WhiteFideId "13612514"]
[BlackFideId "5120241"]
[WhiteElo "2050"]
[BlackElo "1845"]
[Result "0-1"]
[Round "10"]
[TimeControl "180+1"]
[Date "2022.09.27"]
[WhiteClock "0:01:04"]
[BlackClock "0:00:48"]

1. d4 {[%clk 0:03:00]}  Nf6 {[%clk 0:02:58]} 2. c4 {[%clk 0:03:01]}  e6 {[%clk 0:02:57]} 3. g3 {[%clk 0:03:00]}  Be7 {[%clk 0:02:55]} 4. Bg2 {[%clk 0:03:01]}  d5 {[%clk 0:02:55]} 5. Nf3 {[%clk 0:03:01]}  O-O {[%clk 0:02:53]} 6. O-O {[%clk 0:03:02]}  dxc4 {[%clk 0:02:53]} 7. Ne5 {[%clk 0:03:02]}  Nc6 {[%clk 0:02:52]} 8. Nxc6 {[%clk 0:03:02]}  bxc6 {[%clk 0:02:52]} 9. Na3 {[%clk 0:03:02]}  Bxa3 {[%clk 0:02:48]} 10. bxa3 {[%clk 0:03:02]}  Ba6 {[%clk 0:02:45]} 11. Qd2 {[%clk 0:02:51]}  Rb8 {[%clk 0:02:38]} 12. Qa5 {[%clk 0:02:50]}  Qc8 {[%clk 0:02:38]} 13. a4 {[%clk 0:02:12]}  Rd8 {[%clk 0:02:23]} 14. Rd1 {[%clk 0:02:11]}  c3 {[%clk 0:02:05]} 15. Qxc3 {[%clk 0:02:10]}  Bxe2 {[%clk 0:02:04]} 16. Re1 {[%clk 0:02:11]}  Qa6 {[%clk 0:01:54]} 17. Bxc6 {[%clk 0:01:37]}  Bc4 {[%clk 0:01:35]} 18. Bg2 {[%clk 0:01:34]}  Qxa4 {[%clk 0:01:32]} 19. Bg5 {[%clk 0:01:33]}  Nd5 {[%clk 0:01:25]} 20. Qc1 {[%clk 0:01:32]}  Rd7 {[%clk 0:01:16]} 21. Rb1 {[%clk 0:01:30]}  Rb6 {[%clk 0:01:12]} 22. Rb2 {[%clk 0:01:22]}  f6 {[%clk 0:01:04]} 23. Rc2 {[%clk 0:01:17]}  Bxa2 {[%clk 0:00:54]} 24. Bxd5 {[%clk 0:01:13]}  Bxd5 {[%clk 0:00:51]} 25. Bf4 {[%clk 0:01:13]}  c6 {[%clk 0:00:50]} 26. Rb2 {[%clk 0:01:11]}  Rdb7 {[%clk 0:00:49]} 27. Rc2 {[%clk 0:01:10]}  Rb1 {[%clk 0:00:48]} 28. Qd2 {[%clk 0:01:04]}  Rxe1+ {[%clk 0:00:48]} 0-1


[Site "https://www.chess.com"]

[Event "Titled Tuesday Blitz September 27 Early 2022"]
[White "Kosakowski, Jakub"]
[Black "Mahdavi, Reza"]
[WhiteFideId "1185080"]
[BlackFideId "12595926"]
[WhiteElo "2453"]
[BlackElo "2240"]
[Result "1-0"]
[Round "10"]
[TimeControl "180+1"]
[Date "2022.09.27"]
[WhiteClock "0:02:26"]
[BlackClock "0:02:37"]

1. d4 {[%clk 0:02:44]}  Nf6 {[%clk 0:02:56]} 2. Nf3 {[%clk 0:02:38]}  g6 {[%clk 0:02:53]} 3. Bg5 {[%clk 0:02:38]}  Bg7 {[%clk 0:02:53]} 4. e3 {[%clk 0:02:38]}  O-O {[%clk 0:02:54]} 5. Nbd2 {[%clk 0:02:38]}  d5 {[%clk 0:02:53]} 6. c3 {[%clk 0:02:37]}  c5 {[%clk 0:02:54]} 7. Bd3 {[%clk 0:02:37]}  Nc6 {[%clk 0:02:54]} 8. O-O {[%clk 0:02:37]}  b6 {[%clk 0:02:55]} 9. Ne5 {[%clk 0:02:36]}  Bb7 {[%clk 0:02:55]} 10. f4 {[%clk 0:02:36]}  Nd7 {[%clk 0:02:52]} 11. Bh4 {[%clk 0:02:32]}  f6 {[%clk 0:02:46]} 12. Nxc6 {[%clk 0:02:29]}  Bxc6 {[%clk 0:02:47]} 13. Qe2 {[%clk 0:02:29]}  Qc7 {[%clk 0:02:43]} 14. f5 {[%clk 0:02:26]}  g5 {[%clk 0:02:38]} 15. Bg3 {[%clk 0:02:26]}  Qb7 {[%clk 0:02:37]} 16. Ba6 {[%clk 0:02:26]} 1-0


[Site "https://www.chess.com"]